bitfinex-derivatives/quotes_ETHF0:USTF0_20240927
["timestamp","ask_amount","ask_price","bid_price","bid_amount"]
[1727429332955,3.7632,2657.5,2657.3,3.2078]
[1727429333262,3.7632,2657.4,2657.3,3.2078]
[1727429333461,3.7632,2657.5,2657.3,3.2078]
[1727429333763,0.37619,2657.5,2657.3,3.2078]
[1727429333964,0.37621,2657.4,2657.3,3.2078]
[1727429334457,4.2454,2658.2,2657.3,3.2078]
[1727429334656,1.387,2658.1,2657.4,0.9995]
[1727429334857,0.37612,2658.0,2657.4,3.0516]
[1727429335059,0.37614,2657.9,2657.4,3.0516]
[1727429335265,0.37615,2657.9,2657.4,3.0516]
[1727429335458,1.387,2658.1,2657.4,3.0516]
[1727429336656,0.37616,2657.8,2657.4,3.0516]
[1727429337155,1.387,2658.1,2657.4,3.0516]
[1727429337358,0.37615,2657.8,2657.4,3.0516]
[1727429337660,0.37616,2657.8,2657.4,3.0516]
[1727429337861,1.0291,2658.0,2657.4,3.0516]
[1727429338252,0.37618,2657.6,2657.4,0.9995]
[1727429338457,0.37619,2657.5,2657.4,0.9995]
[1727429338853,3.2078,2657.9,2657.4,0.9995]
[1727429339254,0.37619,2657.6,2657.4,0.9995]
[1727429339462,3.2078,2657.9,2657.3,3.2078]
[1727429339665,0.37621,2657.4,2657.3,3.2078]
[1727429340169,3.2078,2657.9,2657.3,3.2078]
[1727429340170,0.37621,2657.5,2657.3,3.2078]
[1727429340366,1.387,2657.7,2657.3,3.2078]
[1727429340765,1.76317,2657.7,2657.3,3.2078]
[1727429341064,1.76317,2657.7,2657.4,0.9963]
[1727429341262,1.76317,2657.7,2657.5,1.041]
[1727429341469,0.37618,2657.6,2657.5,1.041]
[1727429342069,1.76317,2657.7,2657.5,1.041]
[1727429342261,1.0291,2658.0,2657.5,1.041]
[1727429342563,1.76315,2657.9,2657.6,0.9902]
[1727429342760,0.37615,2657.9,2657.6,4.198]
[1727429342965,1.76315,2657.9,2657.6,4.198]
[1727429343166,1.387,2657.9,2657.8,3.2078]
[1727429343369,0.9877,2658.2,2657.8,3.2078]
[1727429343561,0.94009,2658.7,2657.9,0.9963]
[1727429343757,0.37605,2658.6,2658.2,3.2078]
[1727429343960,10.68766,2659.1,2658.5,3.2078]
[1727429344160,10.60066,2659.1,2658.7,3.2078]
[1727429344365,10.60066,2659.1,2658.8,3.2078]
[1727429344563,10.97663,2659.1,2658.8,3.2078]
[1727429344874,10.60066,2659.1,2658.8,3.2078]
[1727429345057,10.60066,2659.1,2658.8,6.9686]
[1727429345761,8.99936,2659.1,2658.9,3.7608]
[1727429346163,8.99936,2659.1,2659.0,3.7608]
[1727429346359,8.99936,2659.1,2658.9,3.7608]
[1727429346564,8.99936,2659.1,2658.8,3.2078]
[1727429346565,8.99936,2659.1,2659.0,3.7608]
[1727429346783,8.99936,2659.1,2658.9,3.7608]
[1727429347273,8.99936,2659.1,2658.7,4.1855]
[1727429347570,0.376,2658.9,2658.7,3.2078]
[1727429347868,8.99936,2659.1,2658.7,3.2078]
[1727429347869,0.37601,2658.8,2658.7,3.2078]
[1727429348059,0.37601,2658.8,2658.6,1.9983]
[1727429348263,0.37602,2658.7,2658.6,0.989]
[1727429348668,4.13763,2658.7,2658.4,3.2078]
[1727429348864,0.37603,2658.7,2658.4,3.2078]
[1727429349174,3.2078,2659.0,2658.4,3.2078]
[1727429349175,0.37602,2658.8,2658.4,3.2078]
[1727429349563,0.376,2658.9,2658.4,3.2078]
[1727429349766,0.37599,2659.0,2658.4,3.2078]
[1727429350067,0.37599,2659.0,2658.2,0.983]
[1727429350068,0.087,2659.5,2658.8,3.2078]
[1727429350268,1.22617,2659.6,2659.1,3.2078]
[1727429350269,0.37593,2659.4,2659.1,3.2078]
[1727429350673,0.37592,2659.5,2659.1,3.2078]
[1727429350865,1.387,2659.7,2659.1,3.2078]
[1727429351072,0.37591,2659.6,2659.1,3.2078]
[1727429351276,1.76289,2659.7,2659.1,3.2078]
[1727429351972,3.40567,2660.2,2658.9,1.9702]
[1727429351973,1.1437,2660.2,2659.5,3.2078]
[1727429352276,1.1437,2660.2,2659.8,3.2078]
[1727429352277,1.0567,2660.2,2659.8,3.2078]
[1727429352772,0.37585,2659.9,2659.8,3.2078]
[1727429353075,0.37585,2659.9,2659.3,3.2078]
[1727429353277,3.58364,2660.0,2659.3,3.2078]
[1727429353468,1.387,2660.1,2659.5,3.2078]
[1727429354070,0.087,2660.5,2659.8,3.2078]
[1727429354291,3.2078,2660.8,2660.3,3.2078]
[1727429355272,3.58353,2660.8,2660.3,3.2078]
[1727429355477,1.387,2660.7,2659.9,0.9872]
[1727429355780,0.37576,2660.6,2659.9,0.9872]
[1727429356168,0.37578,2660.5,2659.9,0.9872]
[1727429356370,2.3929,2660.7,2659.9,0.9872]
[1727429356575,3.2078,2660.2,2659.7,3.2078]
[1727429356772,0.3758,2660.3,2659.7,3.2078]
[1727429356971,0.9734,2660.3,2659.7,3.2078]
[1727429357176,1.34921,2660.3,2659.7,3.2078]
[1727429357681,0.37584,2660.0,2659.7,3.2078]
[1727429357881,0.37586,2659.9,2659.4,0.9867]
[1727429358072,0.37586,2659.9,2659.3,3.2078]
[1727429358274,0.9821,2659.8,2659.3,3.2078]
[1727429358673,3.2078,2659.7,2659.1,1.0572]
[1727429359370,0.9821,2659.8,2659.3,3.2078]
[1727429361287,1.424,2659.7,2659.3,3.2078]
[1727429362877,3.2078,2660.4,2659.6,3.2078]
[1727429363077,0.9734,2660.3,2659.7,0.9953]
[1727429363282,0.9734,2660.3,2659.6,3.2078]
[1727429363475,0.18519284,2660.2,2659.6,3.2078]
[1727429363877,3.2078,2660.1,2659.6,3.2078]
[1727429364078,0.18365082,2660.0,2659.3,3.2078]
[1727429364281,0.37588,2659.7,2659.3,3.2078]
[1727429364476,1.424,2659.7,2659.3,3.2078]
[1727429364881,1.79988,2659.7,2659.3,3.2078]
[1727429365082,1.424,2659.7,2659.3,3.2078]
[1727429365679,1.424,2659.7,2659.4,0.0278]
[1727429366385,3.2078,2660.1,2659.6,3.2078]
[1727429366594,3.2078,2660.4,2659.7,2.078]
[1727429366777,3.2078,2660.4,2659.8,1.0188]
[1727429366980,0.37584,2660.1,2659.8,1.0188]
[1727429367889,0.37582,2660.2,2659.8,1.0188]
[1727429369686,0.3758,2660.3,2659.8,1.0188]
[1727429370090,0.37581,2660.2,2659.8,1.0188]
[1727429370389,0.37578,2660.5,2660.0,0.01043384]
[1727429371088,0.37579,2660.4,2660.0,0.01043384]
[1727429371299,0.37578,2660.5,2660.2,0.01043384]
[1727429371984,0.37579,2660.4,2660.2,0.01043384]
[1727429372183,0.37578,2660.5,2660.3,0.01043384]
[1727429372494,0.37578,2660.4,2660.3,0.01043384]
[1727429373197,4.13498,2660.4,2660.3,0.01043384]
[1727429375295,0.37583,2660.1,2659.9,3.2078]
[1727429375597,0.37584,2660.0,2659.9,3.2078]
[1727429376091,0.37583,2660.1,2659.9,3.2078]
[1727429376493,0.37578,2660.4,2659.9,3.2078]
[1727429376893,0.3758,2660.3,2659.9,3.2078]
[1727429377093,1.0511,2660.6,2659.9,3.2078]
[1727429377393,0.37581,2660.3,2659.9,3.2078]
[1727429377593,0.3758,2660.3,2659.9,3.2078]
[1727429377805,0.37579,2660.4,2659.9,3.2078]
[1727429378694,0.3758,2660.3,2659.9,3.2078]
[1727429378897,1.0511,2660.6,2659.9,3.2078]
[1727429379101,0.3758,2660.3,2659.9,3.2078]
[1727429379295,1.0511,2660.6,2659.9,3.2078]
[1727429379604,0.37582,2660.2,2659.9,3.2078]
[1727429379800,0.37583,2660.1,2659.9,3.2078]
[1727429380301,0.37582,2660.2,2659.9,3.2078]
[1727429382399,0.37583,2660.1,2659.9,3.2078]
[1727429382599,1.0511,2660.6,2659.8,1.0188]
[1727429382800,1.0511,2660.6,2659.7,1.0648]
[1727429382801,0.37587,2659.8,2659.7,1.0648]
[1727429383000,0.9395,2660.3,2659.0,0.9638]
[1727429383001,0.3759,2659.6,2659.5,1.01]
[1727429383798,0.37588,2659.8,2659.5,1.01]
[1727429384194,1.0205,2659.9,2659.5,1.01]
[1727429384395,0.37588,2659.8,2659.5,1.01]
[1727429384796,0.37589,2659.7,2659.5,1.01]
[1727429385102,1.02647,2660.4,2659.5,1.01]
[1727429385307,1.02647,2660.4,2659.7,3.2078]
[1727429385308,0.37585,2660.0,2659.7,3.2078]
[1727429385701,0.37585,2660.0,2659.8,1.027]
[1727429386208,0.37585,2659.9,2659.8,1.027]
[1727429386501,4.29342585,2660.0,2659.8,1.027]
[1727429387104,3.91757585,2660.0,2659.8,1.027]
[1727429387401,3.91757585,2659.9,2659.8,1.027]
[1727429388110,3.91757585,2660.0,2659.8,1.027]
[1727429388612,3.91757585,2659.9,2659.8,1.027]
[1727429389502,4.40727283,2660.0,2659.8,1.027]
[1727429390003,4.40727283,2659.9,2659.8,1.027]
[1727429392605,0.37585,2659.9,2659.8,1.027]
[1727429395599,3.91579193,2660.1,2659.8,1.027]
[1727429396906,3.91579193,2660.1,2659.8,1.0548]
[1727429397612,4.29162193,2660.1,2659.8,1.0548]
[1727429397909,3.91579193,2660.1,2659.8,1.0548]
[1727429398213,3.43134687,2659.9,2659.8,1.0548]
[1727429400901,3.80719687,2659.9,2659.8,1.0548]
[1727429401302,0.37585,2659.9,2659.8,1.0548]
[1727429401707,0.37585,2659.9,2659.8,0.0278]
[1727429402018,4.29164193,2659.9,2659.8,0.0278]
[1727429402201,4.29815255,2659.9,2659.8,0.00898032]
[1727429402707,0.37585,2659.9,2659.8,0.00898032]
[1727429403011,3.92260744,2659.9,2659.8,0.00898032]
[1727429404013,4.40526593,2660.0,2659.8,0.00898032]
[1727429404014,3.92260744,2660.0,2659.8,0.00898032]
[1727429404217,3.43229716,2659.9,2659.8,0.00898032]
[1727429404616,3.43229716,2660.0,2659.8,0.00898032]
[1727429405202,3.43229716,2659.9,2659.8,0.00898032]
[1727429405411,0.37584,2660.0,2659.8,0.00898032]
[1727429405609,3.92260744,2659.9,2659.8,0.00898032]
[1727429406315,4.29845744,2659.9,2659.8,0.00898032]
[1727429406509,3.92260744,2659.9,2659.8,0.00898032]
[1727429407517,4.29845744,2659.9,2659.8,0.00898032]
[1727429408114,0.37585,2659.9,2659.8,0.00898032]
[1727429409217,0.37585,2659.9,2659.6,0.9625]
[1727429409414,4.90555304,2659.8,2659.6,0.9625]
[1727429409719,4.41511578,2659.7,2659.6,4.1703]
[1727429410212,4.41502315,2659.7,2659.6,4.1703]
[1727429411718,4.4166741,2659.7,2659.6,4.1703]
[1727429412614,4.90555304,2659.8,2659.6,4.1703]
[1727429412814,5.28142304,2659.8,2659.6,4.1703]
[1727429413011,4.90555304,2659.8,2659.6,4.1703]
[1727429413418,4.90555304,2659.8,2659.6,4.54619]
[1727429413620,4.41759534,2659.7,2659.6,4.54619]
[1727429413819,4.90555304,2659.8,2659.6,4.54619]
[1727429414618,4.41769219,2659.7,2659.6,4.54619]
[1727429415326,3.4359601,2659.9,2659.6,4.54619]
[1727429416718,3.4359601,2659.9,2659.6,4.1703]
[1727429417119,3.92681155,2660.0,2659.6,3.2078]
[1727429417120,0.37588,2659.7,2659.6,3.2078]
[1727429417629,0.37593,2659.4,2659.3,3.2078]
[1727429417936,0.37593,2659.4,2658.9,1.0627]
[1727429417937,0.37595,2659.3,2659.0,4.2397]
[1727429418125,0.981,2659.2,2659.0,4.2397]
[1727429418321,0.37597,2659.1,2659.0,4.2397]
[1727429418537,0.37597,2659.1,2659.0,1.0319]
[1727429418824,4.41651569,2659.2,2658.7,3.2078]
[1727429419027,3.43551569,2658.9,2658.3,3.2078]
[1727429419225,0.37608,2658.4,2658.3,3.2078]
[1727429419631,4.79259569,2658.4,2658.3,3.2078]
[1727429420531,1.35708,2658.4,2658.3,3.2078]
[1727429421335,0.981,2658.4,2658.3,3.2078]
[1727429424129,4.66151569,2658.6,2658.3,3.2078]
[1727429424320,1.226,2658.6,2658.3,3.2078]
[1727429424518,4.43741569,2658.7,2658.3,3.2078]
[1727429424724,1.0019,2658.7,2658.3,3.2078]
[1727429424932,4.66151569,2658.9,2658.6,3.2078]
[1727429425140,3.92681155,2659.1,2658.6,3.2078]
[1727429425141,4.43741569,2659.1,2658.6,3.2078]
[1727429425627,3.43551569,2658.9,2658.6,3.2078]
[1727429425827,0.37602,2658.8,2658.6,3.2078]
[1727429426031,3.81153569,2658.8,2658.4,0.9942]
[1727429426227,3.43551569,2658.8,2658.4,0.9942]
[1727429426429,0.19126577,2658.7,2658.2,3.2078]
[1727429426623,0.37608,2658.4,2658.2,3.2078]
[1727429426927,1.226,2658.5,2658.2,3.2078]
[1727429427224,0.3761,2658.2,2657.7,4.1713]
[1727429427430,0.37612,2658.0,2657.7,4.1713]
[1727429427626,0.37614,2657.9,2657.7,3.2078]
[1727429428038,0.9631,2658.1,2657.7,3.2078]
[1727429428039,0.37615,2657.8,2657.7,3.2078]
[1727429428236,0.9631,2658.1,2657.7,3.58396]
[1727429428429,0.9631,2658.1,2657.8,0.9635]
[1727429428630,0.9631,2658.1,2657.8,1.33965]
[1727429428935,0.9631,2658.1,2658.0,3.2078]
[1727429429322,4.43021569,2658.6,2658.0,6.9702]
[1727429429528,3.2078,2658.7,2658.2,0.37609]
[1727429429529,5.4412,2658.7,2658.2,0.37609]
[1727429429735,2.2334,2658.7,2658.3,2.1052]
[1727429429931,1.0074,2658.7,2658.3,5.68908]
[1727429430127,1.226,2658.8,2658.4,0.37606]
[1727429430333,1.226,2658.8,2658.5,3.2078]
[1727429430729,1.226,2658.8,2658.3,2.1052]
[1727429430934,0.37603,2658.7,2658.3,2.1052]
[1727429431130,0.37603,2658.7,2658.5,3.2078]
[1727429431634,0.37601,2658.8,2658.5,3.2078]
[1727429431831,0.37603,2658.7,2658.5,3.2078]
[1727429432027,0.37603,2658.7,2658.3,2.1052]
[1727429432938,1.12851078,2658.8,2658.2,3.2078]
[1727429433137,0.37608,2658.3,2658.2,3.2078]
[1727429433342,0.3761,2658.2,2657.8,3.2078]
[1727429433534,1.0661,2658.1,2657.8,3.2078]
[1727429433836,0.37613,2658.0,2657.8,3.2078]
[1727429434140,0.37614,2657.9,2657.8,3.2078]
[1727429434837,0.37613,2658.0,2657.8,3.2078]
[1727429435035,1.0661,2658.1,2657.8,3.2078]
[1727429435235,2.2819,2658.4,2657.9,0.9633]
[1727429435631,0.37611,2658.2,2657.8,3.2078]
[1727429435943,0.37613,2658.0,2657.8,3.2078]
[1727429436233,0.37611,2658.1,2657.8,3.2078]
[1727429436435,2.2819,2658.4,2657.8,3.2078]
[1727429436629,0.37608,2658.3,2657.8,3.2078]
[1727429437027,2.65797,2658.4,2657.8,3.2078]
[1727429437330,1.0559,2658.4,2658.1,3.2078]
[1727429437530,1.0559,2658.4,2658.2,1.9649]
[1727429437732,1.43198,2658.4,2658.2,1.9649]
[1727429437930,1.0559,2658.4,2658.2,1.9649]
[1727429438133,0.37608,2658.3,2658.2,1.9649]
[1727429438438,1.0559,2658.4,2658.2,1.9649]
[1727429439231,1.0559,2658.4,2658.1,3.2078]
[1727429439640,0.3761,2658.2,2658.1,3.2078]
[1727429440041,1.0559,2658.4,2657.8,2.0056]
[1727429440240,0.37614,2657.9,2657.8,1.0385]
[1727429440440,0.37615,2657.8,2657.7,3.2078]
[1727429440929,4.13855,2657.8,2657.7,3.2078]
[1727429441740,3.7624,2657.8,2657.2,1.0385]
[1727429441935,0.37619,2657.6,2657.2,1.0385]
[1727429442438,0.3762,2657.5,2657.2,1.0385]
[1727429442834,2.1075,2657.7,2657.2,1.0385]
[1727429443039,0.37622,2657.4,2657.2,1.0385]
[1727429443233,2.1075,2657.7,2657.2,1.0385]
[1727429443444,0.3762,2657.5,2657.2,1.0385]
[1727429443644,0.37619,2657.6,2657.3,3.2078]
[1727429443848,2.48367,2657.7,2657.3,3.2078]
[1727429444362,3.2078,2657.8,2657.3,3.2078]
[1727429444537,1.0718,2658.3,2657.6,3.2078]
[1727429444843,0.9848,2658.3,2657.7,1.43826]
[1727429445047,0.9848,2658.3,2657.9,3.2078]
[1727429445252,1.36088,2658.3,2657.9,3.2078]
[1727429445546,0.9848,2658.3,2657.9,3.2078]
[1727429445935,1.36089,2658.3,2657.9,3.2078]
[1727429446137,5.4643,2658.5,2657.9,3.2078]
[1727429446451,0.9848,2658.7,2658.2,3.2078]
[1727429446636,3.2948,2659.0,2658.2,3.2078]
[1727429446637,0.376,2658.9,2658.3,2.0422]
[1727429446839,4.4988,2659.0,2658.4,1.0437]
[1727429447048,0.37602,2658.8,2658.4,1.0437]
[1727429447434,0.37602,2658.8,2658.2,3.2078]
[1727429447638,4.4988,2659.0,2658.4,1.0477]
[1727429448040,0.37602,2658.8,2658.4,1.0477]
[1727429448348,1.291,2658.8,2658.4,1.0477]
[1727429448544,1.291,2658.8,2658.5,3.2078]
[1727429449447,0.376,2658.9,2658.5,3.2078]
[1727429449448,1.66701,2658.9,2658.5,3.2078]
[1727429449954,3.2078,2659.0,2658.5,3.2078]
[1727429450246,0.37602,2658.8,2658.5,3.2078]
[1727429450635,0.376,2658.9,2658.5,3.2078]
[1727429451148,4.4988,2659.0,2658.5,3.2078]
[1727429451450,0.37603,2658.7,2658.4,1.0477]
[1727429451945,0.37604,2658.6,2658.4,1.0477]
[1727429452344,0.37603,2658.7,2658.4,1.0477]
[1727429452544,0.37602,2658.8,2658.5,3.2078]
[1727429452945,0.37603,2658.7,2658.5,3.2078]
[1727429453550,0.37604,2658.6,2658.5,3.2078]
[1727429454052,4.4988,2659.0,2658.5,3.2078]
[1727429454254,0.37602,2658.8,2658.5,3.2078]
[1727429454449,4.4988,2659.0,2658.5,3.2078]
[1727429454651,0.37601,2658.9,2658.5,3.2078]
[1727429454952,0.37602,2658.8,2658.5,3.2078]
[1727429455254,0.37603,2658.7,2658.5,3.2078]
[1727429455745,0.37603,2658.7,2658.4,1.0477]
[1727429456052,4.4988,2659.0,2658.4,1.0477]
[1727429456053,1.291,2658.9,2658.4,1.0477]
[1727429456354,0.37603,2658.7,2658.4,1.0477]
[1727429456546,0.37604,2658.6,2658.4,1.0477]
[1727429457549,0.37605,2658.5,2658.4,1.0477]
[1727429457747,0.37604,2658.6,2658.4,1.0477]
[1727429458141,0.37605,2658.5,2658.4,1.0477]
[1727429459244,0.37605,2658.5,2658.4,1.0755]
[1727429459447,0.37604,2658.6,2658.4,0.0278]
[1727429459955,0.37602,2658.7,2658.4,0.0278]
[1727429460345,3.43551569,2658.7,2658.4,0.0278]
[1727429460547,3.43551569,2658.8,2658.6,0.37603]
[1727429460748,3.2078,2659.0,2658.5,3.58385]
[1727429461446,3.2078,2659.0,2658.5,3.2078]
[1727429461646,3.43551569,2658.9,2658.5,3.2078]
[1727429461854,7.01930569,2659.0,2658.5,3.2078]
[1727429462449,3.81151569,2658.9,2658.5,3.2078]
[1727429462850,3.43551569,2658.9,2658.5,3.58384]
[1727429463456,3.43551569,2658.8,2658.5,3.2078]
[1727429463652,3.81153569,2658.8,2658.5,3.2078]
[1727429463857,3.43551569,2658.8,2658.5,3.2078]
[1727429464259,3.81152569,2658.8,2658.5,3.2078]
[1727429464855,3.43551569,2658.8,2658.4,0.0278]
[1727429465165,0.37605,2658.6,2658.4,0.0278]
[1727429465355,3.43551569,2658.6,2658.4,0.0278]
[1727429465555,3.81156569,2658.6,2658.4,0.0278]
[1727429465749,0.37605,2658.5,2658.4,0.0278]
[1727429466263,3.81156569,2658.5,2658.4,0.0278]
[1727429466465,3.43551569,2658.6,2658.4,0.0278]
[1727429466655,3.81155569,2658.6,2658.4,0.0278]
[1727429466956,3.81156569,2658.6,2658.4,0.0278]
[1727429467161,1.0405,2658.7,2658.5,3.7616]
[1727429467162,3.92681155,2658.7,2658.5,3.7616]
[1727429467352,6.35564595,2659.8,2658.5,6.9694]
[1727429467353,4.01381155,2659.3,2658.5,6.9694]
[1727429467554,8.34450374,2659.4,2659.1,3.2078]
[1727429467755,4.90555304,2659.5,2659.1,3.58376]
[1727429467756,4.41769219,2659.5,2659.1,3.58376]
[1727429467955,4.41769219,2659.5,2658.4,0.96796]
[1727429467956,3.92681155,2659.6,2659.4,3.2078]
[1727429468160,0.3759,2659.6,2659.4,3.2078]
[1727429468363,2.44388,2659.7,2659.4,3.2078]
[1727429468664,2.44389,2659.7,2659.4,3.2078]
[1727429468864,0.3759,2659.6,2659.0,3.2078]
[1727429469564,0.37593,2659.4,2659.0,3.2078]
[1727429469769,8.34450374,2660.1,2659.3,3.2078]
[1727429470062,0.37587,2659.9,2659.4,3.2078]
[1727429470264,0.37585,2660.0,2659.4,3.2078]
[1727429470462,0.37585,2660.0,2659.5,1.0545]
[1727429471071,1.9672,2660.2,2659.4,3.2078]
[1727429471364,3.92681155,2660.4,2659.7,3.2078]
[1727429471566,0.37582,2660.2,2659.8,0.9633]
[1727429471763,0.9721,2660.4,2659.8,0.9633]
[1727429471961,0.37583,2660.1,2659.8,0.9633]
[1727429472162,0.37583,2660.1,2659.7,3.2078]
[1727429472163,0.9721,2660.4,2659.7,3.2078]
[1727429472464,0.37588,2659.8,2659.4,3.2078]
[1727429473363,4.4348,2660.2,2659.4,3.2078]
[1727429473564,3.2078,2660.2,2659.4,3.2078]
[1727429473866,0.087,2660.5,2659.8,3.2078]
[1727429473867,0.37579,2660.4,2659.8,3.2078]
[1727429474063,0.37579,2660.4,2659.9,0.9633]
[1727429474675,1.0043,2660.5,2659.9,0.9633]
[1727429474676,0.37581,2660.3,2659.9,0.9633]
[1727429475376,4.41769219,2660.2,2659.9,0.9633]
[1727429475579,3.92681155,2660.1,2659.9,0.9633]
[1727429476075,3.92681155,2660.1,2659.9,2.0239]
[1727429476281,3.92681155,2660.1,2660.0,3.7592]
[1727429476282,0.91581155,2660.1,2660.0,3.7592]
[1727429476577,4.41769219,2660.5,2660.0,7.34283]
[1727429476770,4.79343219,2660.7,2660.4,3.2078]
[1727429476985,0.37574,2660.7,2660.4,3.2078]
[1727429477271,3.7584,2660.7,2659.9,4.1711]
[1727429477477,0.37582,2660.2,2659.9,4.1711]
[1727429477778,0.37581,2660.2,2659.9,4.1711]
[1727429478077,0.3758,2660.4,2659.9,4.1711]
[1727429478268,0.3758,2660.3,2659.9,4.1711]
[1727429479378,4.41769219,2660.5,2659.9,4.1711]
[1727429479575,1.0605,2660.2,2659.9,4.1711]
[1727429479774,0.37583,2660.1,2659.9,4.1711]
[1727429479977,1.43632,2660.2,2659.9,4.1711]
[1727429480877,0.37584,2660.0,2659.9,3.2078]
[1727429481078,3.2078,2660.0,2658.8,4.1754]
[1727429481275,3.2078,2659.4,2658.8,3.2078]
[1727429481475,0.37599,2659.0,2658.8,3.2078]
[1727429481689,4.2401,2659.3,2658.3,2.38047]
[1727429481690,3.2078,2659.2,2658.3,1.0368]
[1727429481887,0.37604,2658.6,2658.3,1.0368]
[1727429482185,0.37604,2658.6,2658.2,3.2078]
[1727429482186,3.2078,2658.9,2658.2,3.2078]
[1727429482378,7.62549219,2658.9,2658.2,3.2078]
[1727429482580,7.62549219,2658.9,2657.9,4.2446]
[1727429482784,3.2078,2658.6,2657.9,4.62073]
[1727429482983,4.41769219,2658.8,2658.2,3.2078]
[1727429483286,1.288,2659.0,2658.5,3.2078]
[1727429484681,0.376,2658.9,2658.5,3.2078]
[1727429484885,1.288,2659.0,2658.5,3.2078]
[1727429485190,0.37603,2658.7,2658.2,3.2078]
[1727429485373,0.37601,2658.8,2658.2,3.2078]
[1727429485579,0.37603,2658.7,2658.2,3.2078]
[1727429486080,0.37603,2658.7,2658.5,3.2078]
[1727429486581,0.37604,2658.6,2658.5,3.2078]
[1727429486787,0.37609,2658.3,2658.2,3.2078]
[1727429487283,1.66409,2658.3,2658.2,1.5934]
[1727429487585,2.1001,2658.5,2658.2,1.5934]
[1727429487887,3.3891,2658.5,2658.2,1.5934]
[1727429488084,2.3323,2658.5,2658.2,1.5934]
[1727429488280,1.41935,2658.5,2658.2,1.5934]
[1727429488887,1.0433,2658.5,2658.2,1.5934]
[1727429489686,2.3287,2658.6,2658.2,1.5934]
[1727429489687,1.0397,2658.6,2658.2,1.5934]
[1727429490688,0.37605,2658.5,2658.2,1.5934]
[1727429491082,1.0397,2658.6,2658.2,1.5934]
[1727429491383,1.0397,2658.6,2658.2,1.96948]
[1727429491587,1.0597,2658.8,2658.2,1.96948]
[1727429491788,4.6472,2658.9,2658.3,0.37608]
[1727429491983,4.6472,2658.9,2658.2,1.5934]
[1727429491984,4.2712,2658.9,2658.4,0.37607]
[1727429492185,5.5602,2658.9,2658.5,1.0184]
[1727429492495,5.9362,2658.9,2658.5,1.0184]
[1727429492895,5.5602,2658.9,2658.5,1.0184]
[1727429493189,2.7284,2658.9,2658.5,1.0184]
[1727429493395,0.37601,2658.8,2658.5,1.0184]
[1727429493693,2.3524,2658.9,2658.5,1.0184]
[1727429494082,1.4394,2658.9,2658.5,1.0184]
[1727429494291,1.0634,2658.9,2658.5,1.0184]
[1727429494491,1.1467,2659.3,2658.9,0.37599]
[1727429494492,0.087,2659.3,2658.9,0.37599]
[1727429494694,3.88881331,2659.8,2658.6,3.7616]
[1727429494695,1.0302,2659.7,2659.1,3.2078]
[1727429494991,1.0302,2659.7,2659.2,1.38865]
[1727429495181,1.40608,2659.7,2659.3,3.2078]
[1727429495386,1.40608,2659.7,2659.2,4.2205]
[1727429495587,1.0302,2659.7,2659.2,4.2205]
[1727429495792,1.0302,2659.7,2659.2,4.59645]
[1727429496289,1.40609,2659.7,2659.2,4.2205]
[1727429496498,1.0302,2659.7,2659.2,4.2205]
[1727429496792,1.40609,2659.7,2659.2,4.2205]
[1727429496987,1.0302,2659.7,2659.2,4.2205]
[1727429497387,1.40609,2659.7,2659.2,4.2205]
[1727429497883,1.0302,2659.7,2659.2,4.2205]
[1727429498090,1.40609,2659.7,2659.2,4.2205]
[1727429498687,1.0302,2659.7,2659.2,4.2205]
[1727429499086,3.2078,2659.9,2659.3,0.37593]
[1727429499489,0.37587,2659.8,2659.2,4.59645]
[1727429500090,3.58366,2659.9,2659.2,4.59645]
[1727429500595,0.37587,2659.8,2659.2,4.2205]
[1727429500890,0.37583,2660.1,2659.6,3.2078]
[1727429501192,4.55642,2660.2,2659.6,3.2078]
[1727429501385,0.37584,2660.0,2659.6,3.2078]
[1727429501785,0.37586,2659.9,2659.6,3.2078]
[1727429501991,0.37585,2660.0,2659.6,3.2078]
[1727429502192,0.37585,2660.0,2659.3,0.37594]
[1727429502495,0.37585,2660.0,2659.5,3.2078]
[1727429502688,4.1806,2660.2,2659.5,3.2078]
[1727429502891,0.37586,2659.9,2659.5,3.2078]
[1727429503091,0.37587,2659.9,2659.5,3.2078]
[1727429503789,4.1806,2660.2,2659.5,3.2078]
[1727429503790,0.37587,2659.8,2659.5,3.2078]
[1727429503990,4.1806,2660.2,2659.5,3.2078]
[1727429503991,5.12015,2660.2,2659.5,3.2078]
[1727429504186,0.37588,2659.8,2659.5,3.2078]
[1727429504705,0.37589,2659.7,2659.5,3.2078]
[1727429504908,0.3759,2659.6,2659.5,3.2078]
[1727429505197,0.37589,2659.7,2659.5,3.2078]
[1727429505401,0.37589,2659.7,2659.2,1.0127]
[1727429505586,0.93957,2660.1,2659.2,1.0127]
[1727429505900,4.14737,2660.1,2659.2,1.0127]
[1727429506491,0.37589,2659.7,2659.2,1.0127]
[1727429506692,3.58368,2659.8,2659.2,1.0127]
[1727429506895,0.37588,2659.8,2659.2,1.38865]
[1727429507202,0.37586,2659.9,2659.2,1.38865]
[1727429507498,0.37585,2660.0,2659.3,0.37594]
[1727429507702,0.37585,2660.0,2659.4,3.2078]
[1727429507994,0.37586,2659.9,2659.4,3.2078]
[1727429508193,3.2078,2660.1,2659.5,0.3759]
[1727429508596,3.2078,2660.1,2659.7,3.2078]
[1727429508793,0.9728,2660.2,2659.8,1.0029]
[1727429510186,1.34861,2660.2,2659.8,1.0029]
[1727429511192,0.37583,2660.1,2659.8,1.0029]